[Event "SixDays Budapest March GM-B 2023"]
[Site "Budapest"]
[Date "2023.03.27"]
[Round "5.1"]
[White "Ilincic, Zlatko"]
[Black "Vantika Agrawal"]
[Result "1/2-1/2"]
[ECO "A56"]
[WhiteElo "2302"]
[BlackElo "2367"]
[Annotator "TA"]
[PlyCount "43"]
[EventDate "2023.03.24"]
[EventType "tourn"]
[EventCountry "HUN"]
[SourceTitle "playchess.com"]
[Source "ChessBase"]
[SourceQuality "1"]
[TimeControl "5400+30"]

{[%evp 11,43,43,39,32,53,62,77,77,82,72,81,88,75,77,76,39,38,0,31,42,48,19,39,27,31,40,43,33,47,0,0,8,57,0]} 1. d4 {[%emt 0:00:33]} Nf6 {[%emt 0:01:44]} 2. c4 {[%emt 0:00:13]} c5 {[%emt 0:00:31]} 3. Nf3 {[%emt 0:00:19]} cxd4 {[%emt 0:01:33]} 4. Nxd4 {[%emt 0:00:08]} e5 {[%emt 0:01:19]} 5. Nc2 {[%emt 0:01:52]} Nc6 {[%emt 0:16:59]} 6. Nc3 {[%emt 0:00:24]} Bc5 {[%emt 0:00:30]} 7. Be3 {[%emt 0:04:32] A31: Symmetrical English: 2 Nf3 Nf6 3 d4.} Be7 {[%emt 0:18:42]} 8. g3 {[%emt 0:09:25]} h6 {[%emt 0:05:57]} 9. Bg2 {[%emt 0:00:40] White is better.} d6 {[%emt 0:01:34]} 10. O-O {[%emt 0:00:40]} O-O {[%emt 0:00:06]} 11. Qd3 {[%emt 0:09:20] [#]} Be6 $146 {[%emt 0:05:02]} ({Predecessor:} 11... Bg4 12. Rfd1 Kh8 13. Rac1 a6 14. b3 Bh5 15. h3 Rc8 16. Qd2 Bg6 17. Kh2 Bh7 {1-0 Vaulin,A (2540)-Kornev,A (2507) St Petersburg White Nights op 2001 (9)}) 12. b3 {[%emt 0:12:52] White is much more active. The black rooks are badly placed.} Qd7 {[%emt 0:04:09]} 13. Rfd1 {[%emt 0:02:57]} Bf5 {[%emt 0:05:50]} 14. Ne4 {[%emt 0:03:05]} Rad8 {[%emt 0:10:43]} 15. Nxf6+ {[%emt 0:00:54]} Bxf6 {[%emt 0:00:20]} 16. Be4 {[%emt 0:00:10]} Be6 {[%emt 0:00:55]} 17. Bc1 {[%emt 0:02:05]} Be7 {[%emt 0:02:11]} 18. Ba3 {[%emt 0:02:44]} Kh8 {[%emt 0:02:15]} 19. Bd5 {[%emt 0:10:11]} Bf5 {[%emt 0:05:29]} 20. Be4 {[%emt 0:00:12]} (20. e4 $14 Bg4 21. f3) 20... Bh3 {[%emt 0:01:43]} 21. Bg2 {[%emt 0:00:10]} Bf5 {[%emt 0:03:49]} (21... Bxg2 $11 {should be considered.} 22. Kxg2 f5) 22. Be4 {[%emt 0:02:07] Weighted Error Value: White=0.13 (very precise) /Black=0.12 (very precise)} (22. e4 $14 Bg4 23. f3) 1/2-1/2

[Event "SixDays Budapest March GM-B 2023"]
[Site "Budapest"]
[Date "2023.03.27"]
[Round "5.2"]
[White "Moksh Amit Doshi"]
[Black "Swayams, Mishra"]
[Result "1/2-1/2"]
[ECO "D63"]
[WhiteElo "2388"]
[BlackElo "2489"]
[Annotator "TA"]
[PlyCount "102"]
[EventDate "2023.03.24"]
[EventType "tourn"]
[EventCountry "HUN"]
[SourceTitle "playchess.com"]
[Source "ChessBase"]
[SourceQuality "1"]
[TimeControl "5400+30"]

{[%evp 25,102,19,37,0,0,-11,-12,-12,-12,-12,-10,-6,-12,-11,0,0,0,0,0,-5,0,0,-2,-2,0,0,0,0,0,0,0,0,0,0,0,0,0,0,0,-4,0,0,0,0,0,0,0,0,0,0,0,0,0,0,0,0,0,-20,-8,-21,-21,-25,-21,-21,-21,-21,-21,-21,-12,-21,-21,-21,0,-14,0,0,0,0,0]} 1. d4 {[%emt 0:01:58]} Nf6 {[%emt 0:20:39]} 2. c4 {[%emt 0:00:07]} e6 {[%emt 0:00:47]} 3. Nf3 {[%emt 0:00:07]} d5 {[%emt 0:01:47]} 4. Nc3 {[%emt 0:00:09]} Nbd7 {[%emt 0:00:05]} 5. Bg5 {[%emt 0:00:38]} Be7 {[%emt 0:00:43]} 6. e3 {[%emt 0:00:08]} O-O {[%emt 0:00:08]} 7. Rc1 {[%emt 0:00:26]} c6 {[%emt 0:03:57]} 8. h3 {[%emt 0:02:01]} b6 {[%emt 0:03:22]} 9. Bd3 {[%emt 0:00:27]} Bb7 {[%emt 0:00:11]} 10. O-O {[%emt 0:01:26]} h6 {[%emt 0:03:18]} 11. Bf4 {[%emt 0:03:29]} c5 {[%emt 0:03:06]} 12. cxd5 {[%emt 0:00:07]} Nxd5 {[%emt 0:00:52]} 13. Nxd5 {[%emt 0:00:08]} Bxd5 {[%emt 0:00:57] [#]} (13... exd5 {simplifies} 14. b3 Nf6 15. Qc2 Rc8) 14. dxc5 $146 {[%emt 0:01:24] E12: Queen's Indian: Unusual White 4th moves, 4 a3, 4 Nc3 Bb7 5 a3 and 4 Nc3 Bb7 .} (14. Qe2 {with more complications.} cxd4 15. Bc7 Qe8 16. Nxd4 Nc5 17. Bb5) ({Predecessor:} 14. Bb1 Nf6 15. Ne5 cxd4 16. Qxd4 Bc5 17. Qa4 Qe7 18. e4 Bb7 19. a3 a6 20. b4 b5 21. Qb3 Bb6 {1-0 Chekhova Kostina,T (2295)-Maslakovic,B Pula op 1990 (4)}) 14... Nxc5 {[%emt 0:00:13] [#] Strongly threatening ...Bxf3.} 15. Bc4 {[%emt 0:00:05]} Bxc4 {[%emt 0:08:19]} 16. Rxc4 {[%emt 0:00:09]} Qxd1 {[%emt 0:00:06]} 17. Rxd1 {[%emt 0:00:07]} Rfd8 {[%emt 0:00:02]} 18. Rxd8+ {[%emt 0:04:27]} Rxd8 {[%emt 0:00:34]} 19. Rd4 {[%emt 0:01:31]} Nd3 {[%emt 0:01:16]} 20. Rxd8+ {[%emt 0:03:22]} Bxd8 {[%emt 0:00:04]} 21. Ne5 {[%emt 0:00:08]} Nxf4 {[%emt 0:05:07]} 22. exf4 $11 {[%emt 0:00:07][%mdl 4096] Endgame KB-KN} Bc7 {[%emt 0:00:02]} 23. Kf1 {[%emt 0:02:15]} a6 {[%emt 0:00:42]} 24. Ke2 {[%emt 0:00:55]} f6 {[%emt 0:04:26]} 25. Nd3 {[%emt 0:00:07]} Kf7 {[%emt 0:00:05]} 26. Ke3 {[%emt 0:00:19]} Ke7 {[%emt 0:00:45]} 27. Kd4 {[%emt 0:00:17]} Kd6 {[%emt 0:00:45]} 28. a4 {[%emt 0:02:01]} b5 {[%emt 0:00:35]} 29. axb5 {[%emt 0:00:45]} axb5 {[%emt 0:00:03]} 30. f3 {[%emt 0:07:12]} Bb6+ {[%emt 0:03:51]} 31. Kc3 {[%emt 0:00:09]} Ba5+ {[%emt 0:00:01]} 32. Kd4 {[%emt 0:01:06]} Bd2 {[%emt 0:03:21]} 33. g3 {[%emt 0:01:15]} Ba5 {[%emt 0:01:33]} 34. Ke4 {[%emt 0:05:47]} g6 {[%emt 0:03:18]} 35. Kd4 {[%emt 0:01:10]} Bb6+ {[%emt 0:00:13]} 36. Kc3 {[%emt 0:00:07]} Ba5+ {[%emt 0:00:20]} 37. Kd4 {[%emt 0:00:06]} Kc6 {[%emt 0:04:04]} 38. Ke4 {[%emt 0:01:55]} Kd6 {[%emt 0:02:52]} 39. Kd4 {[%emt 0:00:21]} Bb6+ {[%emt 0:00:43]} 40. Kc3 {[%emt 0:00:11]} Bc5 {[%emt 0:00:42]} 41. Nc1 {[%emt 0:09:33]} Kd5 {[%emt 0:02:39]} 42. Kd3 {[%emt 0:00:08]} Bd4 {[%emt 0:03:06]} 43. b3 {[%emt 0:00:22]} Bf2 {[%emt 0:01:24]} 44. Ne2 {[%emt 0:00:08] The position is equal.} Kc5 {[%emt 0:01:03]} 45. Kc3 {[%emt 0:02:25]} Be1+ {[%emt 0:01:09]} 46. Kd3 {[%emt 0:00:05]} Kb4 {[%emt 0:02:04]} 47. Kc2 {[%emt 0:00:08]} Bf2 {[%emt 0:00:34]} 48. Kb2 {[%emt 0:00:09]} Kc5 {[%emt 0:04:26]} 49. Kc3 {[%emt 0:00:12]} Be1+ {[%emt 0:00:07]} 50. Kd3 {[%emt 0:00:06]} Kb4 {[%emt 0:01:10]} 51. Kc2 {[%emt 0:00:19]} Bf2 {[%emt 0:00:03] A balanced but interesting game.   Weighted Error Value: White=0.03 (flawless) /Black=0.02 (flawless)} 1/2-1/2

[Event "SixDays Budapest March GM-B 2023"]
[Site "Budapest"]
[Date "2023.03.27"]
[Round "5.3"]
[White "Varga, Csaba Zoltan"]
[Black "Priasmoro, Novendra"]
[Result "0-1"]
[ECO "A45"]
[WhiteElo "2278"]
[BlackElo "2521"]
[Annotator "TA"]
[PlyCount "90"]
[EventDate "2023.03.24"]
[EventType "tourn"]
[EventCountry "HUN"]
[SourceTitle "playchess.com"]
[Source "ChessBase"]
[SourceQuality "1"]
[TimeControl "5400+30"]

{[%evp 9,90,-18,-17,-20,40,5,19,11,24,17,29,0,0,-2,-2,-12,0,0,0,0,16,0,35,0,0,-20,-18,-20,-11,-22,-6,-17,-2,-11,0,0,25,20,33,0,0,0,0,0,0,0,0,0,0,0,0,-8,-8,-60,-45,-114,-68,-68,-69,-64,-68,-106,-103,-406,-395,-361,-164,-147,-147,-146,-130,-121,-120,-173,-178,-175,-172,-484,-484,-561,-559,-835,-823]} 1. d4 {[%emt 0:01:22]} Nf6 {[%emt 0:01:37]} 2. a3 {[%emt 0:00:03]} g6 {[%emt 0:00:44]} 3. Bf4 {[%emt 0:04:02]} Bg7 {[%emt 0:00:07] [#]} 4. Nd2 $146 {[%emt 0:00:06]} ({Predecessor:} 4. e3 O-O 5. Nf3 d6 6. h3 c5 7. Be2 Qb6 8. Nc3 Bf5 9. g4 cxd4 10. exd4 {1-0 Perez Garcia,A (2177)-Ros Alonso,J (2190) Barcelona Sant Andreu FM 2019 (3)}) 4... c5 {[%emt 0:01:00]} 5. e3 {[%emt 0:00:22]} Nc6 {[%emt 0:04:29]} 6. c3 {[%emt 0:00:29][%cal Bc2c3,Bc3d4][%mdl 32] A00: Irregular Openings.} Nh5 {[%emt 0:02:48]} (6... d6 $11) 7. Bg5 {[%emt 0:05:34]} (7. d5 $5 {[%cal Rd5c6]}) 7... h6 {[%emt 0:01:03]} 8. Bh4 {[%emt 0:00:09] The position is equal.} cxd4 {[%emt 0:00:13]} 9. cxd4 {[%emt 0:00:15]} O-O {[%emt 0:00:54]} 10. Bd3 {[%emt 0:05:51]} d5 {[%emt 0:03:24]} 11. Ngf3 {[%emt 0:00:54]} Qb6 {[%emt 0:01:44]} 12. b4 {[%emt 0:03:46]} e5 {[%emt 0:01:57]} 13. dxe5 {[%emt 0:02:14]} Nxe5 {[%emt 0:00:07]} 14. Nxe5 {[%emt 0:00:11]} Bxe5 {[%emt 0:00:08]} 15. Rc1 {[%emt 0:07:32]} a5 {[%emt 0:02:23]} 16. Be7 {[%emt 0:07:54]} Re8 {[%emt 0:00:24]} 17. Bc5 {[%emt 0:00:44]} Qf6 {[%emt 0:00:23] [#] White must now prevent ...b6.} 18. Bb5 {[%emt 0:00:48]} Rd8 {[%emt 0:01:12]} 19. bxa5 {[%emt 0:03:27]} Rxa5 {[%emt 0:03:54]} 20. a4 {[%emt 0:14:35]} Ra8 {[%emt 0:05:55]} (20... Bb2 $5) 21. Nf3 {[%emt 0:05:33]} Bg4 {[%emt 0:08:16]} 22. O-O {[%emt 0:03:21]} Rac8 {[%emt 0:10:03][%cal Oe5h2]} 23. Be2 {[%emt 0:06:25][%cal Bb5e2,Be2f3,Bf3d5][%mdl 32] Hoping for Nxe5.} b6 {[%emt 0:13:01]} 24. Bd4 {[%emt 0:03:16]} Bxf3 {[%emt 0:03:22]} 25. Rxc8 {[%emt 0:01:34]} Rxc8 {[%emt 0:01:25]} 26. Bxf3 {[%emt 0:00:06]} Bxd4 {[%emt 0:00:27]} 27. exd4 {[%emt 0:02:47]} Nf4 $40 {[%emt 0:00:48][%mdl 128] Black is up to no good.} 28. g3 {[%emt 0:01:14]} Ne6 {[%emt 0:01:36][%cal Bf4e6,Be6d4,Bd4e2][%mdl 32]} 29. Bxd5 {[%emt 0:00:10]} Nxd4 {[%emt 0:00:15]} 30. Qg4 {[%emt 0:02:41]} Rc2 {[%emt 0:01:21]} 31. Qd7 {[%emt 0:00:43]} (31. Qe4 $11) 31... Kg7 $15 {[%emt 0:00:28]} 32. Qb7 {[%emt 0:00:59] [#]} (32. Kg2 $15) 32... Rd2 {[%emt 0:01:09]} ({Black should try} 32... Ne2+ $1 $17 33. Kg2 h5) 33. h4 {[%emt 0:02:16]} Ne2+ {[%emt 0:12:31]} 34. Kg2 {[%emt 0:00:07]} Nc3 {[%emt 0:02:14][%csl LRa4,LRd5]} 35. Bf3 {[%emt 0:01:30]} Nxa4 {[%emt 0:00:30] Black is much more active.} 36. Rb1 $2 {[%mdl 8192]} (36. Qe4 $17 {is a better chance.} Nc5 37. Qe3) 36... Qd4 $19 37. Rf1 {[%emt 0:01:42]} Nb2 {[%emt 0:01:19]} (37... Nc3 $142 {aiming for ...b5.} 38. Qa7 Ra2) 38. Qe4 {[%emt 0:01:57]} Qxe4 {[%emt 0:00:30]} 39. Bxe4 $17 {[%emt 0:00:04][%mdl 4096] Endgame KRB-KRN} Nd1 {[%emt 0:00:24]} 40. Kf3 {[%emt 0:00:47] Inhibits Ne3.} b5 {[%emt 0:00:23][%cal Bb6b5,Bb5b4,Bb4b3,Bb3b2][%mdl 32] And now ...b4 would win.} 41. Bc6 {[%emt 0:01:39]} (41. Bc2 $17 Nb2 42. Rc1) 41... b4 $19 {[%emt 0:00:44]} 42. Ba4 {[%emt 0:00:11] Prevents b3.} Nc3 {[%emt 0:01:31]} 43. Ke3 {[%emt 0:00:19] Against Rd3+} (43. Ra1) 43... Ra2 {[%emt 0:00:29] Black is clearly winning.} 44. Bc6 {[%emt 0:01:45]} b3 {[%emt 0:01:32] ...b2 would be deadly.} 45. Be4 {[%emt 0:00:04]} b2 {[%emt 0:00:19] Weighted Error Value: White=0.41/Black=0.13 (very precise)} 0-1

[Event "SixDays Budapest March GM-B 2023"]
[Site "Budapest"]
[Date "2023.03.27"]
[Round "5.4"]
[White "Pribelszky, Bence"]
[Black "Tran, Thanh Tu"]
[Result "1-0"]
[ECO "B00"]
[WhiteElo "2380"]
[BlackElo "2402"]
[Annotator "TA"]
[PlyCount "95"]
[EventDate "2023.03.24"]
[EventType "tourn"]
[EventCountry "HUN"]
[SourceTitle "playchess.com"]
[Source "ChessBase"]
[SourceQuality "1"]
[TimeControl "5400+30"]

{[%evp 20,95,91,60,106,0,0,0,7,-110,-105,-120,-134,-138,-127,-147,-125,-116,-115,-106,-95,-135,-111,-105,-70,-118,0,0,0,0,0,0,50,77,71,21,217,132,160,62,258,257,262,261,352,352,367,364,353,342,368,342,347,185,268,274,725,715,2022,2077,2021,1966,29991,29992,29992,5281,5156,4790,29982,688,670,644,852,833,872,870,827,805]} 1. e4 {[%emt 0:05:50]} Nc6 {[%emt 0:04:17]} 2. d4 {[%emt 0:00:07]} d6 {[%emt 0:00:05]} 3. Nc3 {[%emt 0:00:03]} g6 {[%emt 0:00:29]} 4. Be3 {[%emt 0:00:06]} Bg7 {[%emt 0:00:08]} 5. Qd2 {[%emt 0:00:06]} e5 {[%emt 0:01:07]} 6. Nge2 {[%emt 0:02:52]} exd4 {[%emt 0:10:52]} 7. Nxd4 {[%emt 0:00:09]} Nf6 {[%emt 0:00:14]} 8. f3 {[%emt 0:03:00]} O-O {[%emt 0:00:37]} 9. O-O-O {[%emt 0:00:22]} Nxd4 {[%emt 0:04:51]} 10. Bxd4 {[%emt 0:00:10]} Be6 {[%emt 0:00:07]} 11. Kb1 {[%emt 0:19:57] White is more active.} b5 {[%emt 0:07:27] [#] C41: Philidor Defence.} 12. Bxb5 $146 {[%emt 0:03:12]} (12. Nxb5 $16 {next Qa5 is good for White.} a6 13. Nc3) ({Predecessor:} 12. Nxb5 c6 13. Na3 Rb8 14. b3 a5 15. Bb2 Qb6 16. Nc4 Bxc4 17. Bxc4 d5 18. exd5 cxd5 19. Be2 {1-0 Manik,M (2380)-Zatonskih,V (2330) Hlohovec op 1995}) 12... c5 $1 $11 {[%emt 0:06:21]} 13. Be3 {[%emt 0:13:40]} Qa5 {[%emt 0:06:33] Threatens to win with ...Rfb8. The position is equal.} 14. Qxd6 {[%emt 0:10:41] [#]} (14. e5 $11 dxe5 15. Qd6 (15. Bxc5 Rfc8 $17)) 14... Nxe4 $1 $17 {[%emt 0:08:37][%mdl 512]} 15. fxe4 {[%emt 0:00:57] Qa6 would be deadly.} Bxc3 {[%emt 0:00:04]} 16. Qa6 {[%emt 0:07:10]} Qb4 {[%emt 0:00:16][%csl Gc3][%cal Rb4b2][%mdl 1024] Black has strong compensation.} (16... Bxa2+ 17. Kc1 $14) 17. Bc1 {[%emt 0:02:00] Strongly threatening a3.} Rab8 {[%emt 0:08:18]} 18. a4 {[%emt 0:00:03]} Be5 $1 {[%emt 0:00:32]} 19. Rd3 {[%emt 0:10:51]} (19. Qxa7 $2 Ra8 20. Qe7 Rxa4 $19) 19... c4 $1 {[%emt 0:25:37]} (19... Qxe4 $6 20. Rhd1 $15) 20. c3 {[%emt 0:00:01][%mdl 64] Deflection} Qe7 {[%emt 0:01:20]} 21. Rf3 {[%emt 0:02:46]} (21. Bxc4 $2 Rb6 $19) 21... Bc8 {[%emt 0:05:42]} 22. Qc6 {[%emt 0:05:08] [#]} (22. Qa5 $15) 22... a6 {[%emt 0:05:20]} 23. Bxa6 $11 {[%emt 0:00:02]} (23. Bxc4 $2 {is the wrong capture.} Bb7 24. Rxf7 Rxf7 $19) 23... Bxa6 {[%emt 0:00:03]} 24. Qxa6 {[%emt 0:00:08]} Qc7 {[%emt 0:00:07]} 25. a5 {[%emt 0:04:56][%cal Ba4a5,Ba5a6,Ba6a7][%mdl 32] Prevents Rb6.} Ra8 {[%emt 0:02:20]} (25... Rfd8 $11 26. Be3 Ra8) 26. Qb6 $14 {[%emt 0:00:03]} Qe7 {[%emt 0:00:18]} 27. Rhf1 {[%emt 0:04:09]} ({White should play} 27. Rd1 $16) 27... f6 $2 {[%emt 0:00:59]} (27... Bg7 $1 $11 28. Qc6 Rxa5) 28. a6 {[%emt 0:01:55]} Rfd8 {[%emt 0:00:42]} 29. Qb5 {[%emt 0:01:32]} (29. Qc6 $16) 29... Rac8 $2 {[%emt 0:00:25]} (29... Qe6 $14) 30. Bf4 $18 {[%emt 0:00:52][%cal Bc1f4,Bf4e3,Be3b6][%mdl 32] Hoping for Bxe5.} Rc5 {[%emt 0:00:32]} 31. Qa4 {[%emt 0:02:04]} Rdc8 {[%emt 0:01:07]} 32. Be3 {[%emt 0:01:05]} R5c7 {[%emt 0:00:25]} 33. a7 {[%emt 0:00:23]} Ra8 {[%emt 0:00:02]} 34. Bb6 {[%emt 0:00:18]} Rcc8 {[%emt 0:00:55]} 35. Rd1 {[%emt 0:00:10]} Qb7 {[%emt 0:00:05]} 36. Qa5 {[%emt 0:01:02]} (36. Bf2 $142) 36... Qxe4+ {[%emt 0:00:08]} (36... Bc7 $142) 37. Ka1 {[%emt 0:00:01]} Qc2 $2 {[%emt 0:00:39]} (37... Qc6 38. Qd5+ Kh8 39. Qxc6 Rxc6) 38. Rd7 {[%emt 0:00:12] Threatening mate with Qd5+.} Rf8 {[%emt 0:01:04]} 39. Qd5+ {[%emt 0:01:21]} Kh8 {[%emt 0:00:01]} 40. Qb7 {[%emt 0:00:05]} f5 {[%emt 0:00:07]} 41. Rxh7+ {[%emt 0:00:49]} Kg8 {[%emt 0:00:01]} 42. Rd7 {[%emt 0:00:33]} (42. Qd5+ $142 Kxh7 43. Rh3+ (43. Qxe5 Qd1+ 44. Ka2 Qb3+ 45. Kb1 Qd1+ 46. Ka2 Qb3+ 47. Kb1 Qd1+ 48. Ka2 $11) 43... Kg7 44. Qxe5+ Rf6 45. Qe7+ Kg8 46. Qh7+ (46. Qxf6 Qd1+ 47. Ka2 Qb3+ 48. Kb1 Qd1+ 49. Ka2 Qb3+ 50. Kb1 Qd1+ 51. Ka2 $11) 46... Kf8 47. Bc5+ Rd6 48. Bxd6+ Ke8 49. Qe7#) 42... Qe4 {[%emt 0:01:57]} 43. Qxe4 {[%emt 0:00:13]} fxe4 {[%emt 0:00:03]} 44. Re3 {[%emt 0:00:45]} (44. Rxf8+ $142 Kxf8 45. Rd8+ Rxd8 46. Bxd8 Ke8 47. a8=Q Kd7 48. Bg5 Bxh2 49. Qb7+ Ke6 50. Qxe4+ Kd7 51. Qxc4) 44... Rf6 {[%emt 0:00:44] White is clearly winning.} 45. Rb7 {[%emt 0:00:12]} Rf4 {[%emt 0:00:48]} 46. g3 {[%emt 0:00:25]} Rf7 {[%emt 0:00:31]} 47. Rxf7 {[%emt 0:00:04]} Kxf7 {[%emt 0:00:03]} 48. Rxe4 {[%emt 0:00:35] An entertaining game by Pribelszky.   Weighted Error Value: White=0.40/Black=0.52} 1-0

[Event "SixDays Budapest March GM-B 2023"]
[Site "Budapest"]
[Date "2023.03.27"]
[Round "5.5"]
[White "Royal, Shreyas"]
[Black "Joshua, A P"]
[Result "1-0"]
[ECO "D35"]
[WhiteElo "2452"]
[BlackElo "2300"]
[Annotator "TA"]
[PlyCount "75"]
[EventDate "2023.03.24"]
[EventType "tourn"]
[EventCountry "HUN"]
[SourceTitle "playchess.com"]
[Source "ChessBase"]
[SourceQuality "1"]
[TimeControl "5400+30"]

{[%evp 14,75,25,12,24,18,11,12,19,26,27,6,28,0,10,0,0,0,6,0,31,36,47,44,40,44,41,42,83,89,222,218,241,237,241,188,371,333,377,341,355,341,456,112,476,136,322,301,428,383,917,911,859,429,368,356,682,656,2232,2053,29996,6279,29997,29998]} 1. d4 {[%emt 0:00:33]} d5 {[%emt 0:03:09]} 2. c4 {[%emt 0:00:06]} e6 {[%emt 0:00:46]} 3. Nc3 {[%emt 0:00:05]} Nf6 {[%emt 0:00:16]} 4. cxd5 {[%emt 0:00:05]} exd5 {[%emt 0:00:29]} 5. Bg5 {[%emt 0:00:07]} c6 {[%emt 0:00:07]} 6. e3 {[%emt 0:00:05]} Be7 {[%emt 0:00:16]} 7. Bd3 {[%emt 0:00:07]} h6 {[%emt 0:01:21]} 8. Bh4 {[%emt 0:00:07]} Nbd7 {[%emt 0:00:08] D35: Queen's Gambit Declined: Exchange Variation.} 9. Bg3 {[%emt 0:00:06]} O-O {[%emt 0:00:26]} 10. h3 {[%emt 0:00:11]} Re8 {[%emt 0:00:52] The position is equal.} 11. Nf3 {[%emt 0:00:08] [#]} Bf8 $146 {[%emt 0:04:09]} ({Predecessor:} 11... Bb4 12. Qb3 c5 13. O-O Bxc3 14. Qxc3 c4 15. Bc2 a5 16. a4 Qb6 17. b3 Ne4 18. Bxe4 dxe4 {1-0 Carlsen,M (2862)-Firouzja,A (2749) Skilling op Prelim rapid 2020 (5)}) 12. O-O {[%emt 0:00:10]} Ne4 {[%emt 0:02:19]} 13. Bh2 {[%emt 0:03:25]} Bd6 {[%emt 0:05:20]} 14. Qc2 {[%emt 0:00:25][%cal Rc3e4]} Bxh2+ {[%emt 0:01:16]} 15. Kxh2 {[%emt 0:00:05][%cal Rc3e4]} Qe7 {[%emt 0:02:28]} 16. Rfe1 {[%emt 0:01:46]} g5 {[%emt 0:13:39][%cal Bg7g5,Bg5g4][%mdl 32]} 17. Kg1 {[%emt 0:05:03]} h5 {[%emt 0:03:47]} 18. Nd2 {[%emt 0:00:38]} Ndf6 {[%emt 0:03:04]} 19. f3 $36 {[%emt 0:02:04][%mdl 2048] Black is under pressure.} Nxc3 {[%emt 0:03:30]} 20. bxc3 {[%emt 0:00:08]} g4 {[%emt 0:00:43]} 21. e4 {[%emt 0:01:58] Black is now going downhill.} dxe4 {[%emt 0:05:15]} (21... gxh3 $16 22. exd5 {[%mdl 64] Discovered Attack} (22. e5 Nd7 $11) 22... Qd6) 22. Nxe4 $18 {[%emt 0:03:41]} Nxe4 {[%emt 0:03:54]} 23. Rxe4 {[%emt 0:01:38]} (23. Bxe4 Qg5 $14) 23... Be6 {[%emt 0:14:36]} 24. Qd2 {[%emt 0:00:12]} (24. hxg4 $6 hxg4 25. Qd2 (25. fxg4 Qh4 $16) 25... Qh4 $16) 24... Qf6 {[%emt 0:03:48] Against Qh6} (24... gxh3 {might work better.} 25. Qh6 f5 26. Qg6+ Kf8) 25. hxg4 {[%emt 0:00:05] And now Re5 would win.} hxg4 {[%emt 0:00:32]} 26. fxg4 {[%emt 0:00:06][%cal Bf3g4,Bg4g5][%mdl 32]} Bd5 {[%emt 0:05:13]} 27. g5 {[%emt 0:00:12]} Qd6 {[%emt 0:00:35]} 28. Rf4 {[%emt 0:00:59]} (28. Rh4 $18 {and the rest is easy.}) 28... Kg7 $2 {[%emt 0:01:40][%mdl 8192]} (28... Qe7 $16 {is a better chance.}) 29. Raf1 $2 {[%emt 0:01:03]} (29. c4 $18 {has better winning chances.} Be6 30. Raf1) 29... b5 $2 {[%emt 0:07:45] [#]} (29... Qe7 $16) 30. Qf2 $1 {[%emt 0:04:51][%cal Rf4f7] Threatening mate with Rxf7+.} (30. Rf6 Qg3 $14) 30... Qe7 {[%emt 0:04:08] [#]} (30... Qe6 $142 31. Rxf7+ (31. Rh4 Qe3 $16) 31... Qxf7) 31. Be4 $1 {[%emt 0:01:09][%mdl 64] Hoping for Bxd5. Deflection} (31. Rh4 Qe3 $16) 31... Rf8 $2 {[%emt 0:05:23]} (31... Bc4 32. Re1 Rad8) 32. Bxd5 {[%emt 0:01:23]} cxd5 {[%emt 0:00:09]} 33. Rf5 {[%emt 0:00:14]} (33. Re1 $142 Qd8 34. Rf6) 33... Rac8 {[%emt 0:00:39]} 34. Qf3 {[%emt 0:00:40]} ({Don't do} 34. Rxd5 Rc6 35. Rxb5 Re6) 34... Rcd8 $2 {[%emt 0:01:18]} (34... Rce8 35. Re5 (35. Qxd5 Qe3+ 36. R1f2 Qe1+ 37. Kh2 Rh8+ 38. Kg3 Re3+ 39. R5f3 Rxf3+ 40. Qxf3 Qe7 $18) 35... Qd8 36. Rxd5 Qb6) 35. Qh3 {[%emt 0:04:31] aiming for Qh6+.} ({Stronger than} 35. Rxd5 Rxd5 36. Qxd5 Qe3+ 37. Rf2 Qe1+ 38. Rf1 Qe3+ 39. Rf2 Qe1+ 40. Rf1 Qe3+ $11) 35... Rd6 {[%emt 0:02:15] Inhibits Qh6+.} 36. Rf6 {[%emt 0:00:21]} Re6 {[%emt 0:00:13]} 37. Qh6+ {[%emt 0:00:33]} Kg8 {[%emt 0:00:02] [#]} 38. g6 $1 {[%emt 0:00:08] Artfully played by Royal.   Weighted Error Value: White=0.55/Black=0.99} 1-0